[Event "*** Titled Tuesday Blitz"]
[Site "Chess.com"]
[Date "2021.04.06"]
[Round "10"]
[White "maximych26"]
[Black "TeukkaSalama"]
[Result "1-0"]
[WhiteElo "2277"]
[BlackElo "2361"]
[TimeControl "180+1"]
[EndTime "11:55:51 PDT"]
[Termination "maximych26 won on time"]

1. e4 {[%clk 0:03:00.5]} 1... e5 {[%clk 0:02:57.9]} 2. Nf3 {[%clk 0:03:00]} 2...
Nc6 {[%clk 0:02:58]} 3. Bc4 {[%clk 0:02:59.2]} 3... Nf6 {[%clk 0:02:57.6]} 4. d3
{[%clk 0:02:59]} 4... Be7 {[%clk 0:02:48.6]} 5. O-O {[%clk 0:02:58.2]} 5... O-O
{[%clk 0:02:48.6]} 6. c3 {[%clk 0:02:58.6]} 6... d6 {[%clk 0:02:43]} 7. h3
{[%clk 0:02:57.9]} 7... Na5 {[%clk 0:02:41.8]} 8. Bb5 {[%clk 0:02:56.7]} 8... a6
{[%clk 0:02:39.5]} 9. Ba4 {[%clk 0:02:56.7]} 9... b5 {[%clk 0:02:38.4]} 10. Bc2
{[%clk 0:02:57.2]} 10... c5 {[%clk 0:02:37.9]} 11. a4 {[%clk 0:02:56.2]} 11...
Bb7 {[%clk 0:02:31.2]} 12. Re1 {[%clk 0:02:54.8]} 12... Nc6 {[%clk 0:02:29]} 13.
Nbd2 {[%clk 0:02:54.2]} 13... Re8 {[%clk 0:02:25.6]} 14. Nf1 {[%clk 0:02:52.4]}
14... Bf8 {[%clk 0:02:24.7]} 15. Ne3 {[%clk 0:02:46.2]} 15... g6 {[%clk
0:02:21.1]} 16. Bb3 {[%clk 0:02:46.2]} 16... h6 {[%clk 0:02:16.7]} 17. Nd5
{[%clk 0:02:42.1]} 17... Bg7 {[%clk 0:02:10.5]} 18. Nh2 {[%clk 0:02:40.5]} 18...
Nxd5 {[%clk 0:01:49.9]} 19. Bxd5 {[%clk 0:02:39.4]} 19... Qc7 {[%clk 0:01:48.3]}
20. Qf3 {[%clk 0:02:33.5]} 20... Rf8 {[%clk 0:01:35.8]} 21. Ng4 {[%clk
0:02:31.9]} 21... Kh7 {[%clk 0:01:33.4]} 22. Nf6+ {[%clk 0:02:29]} 22... Bxf6
{[%clk 0:01:32.2]} 23. Qxf6 {[%clk 0:02:29]} 23... Qd8 {[%clk 0:01:04.2]} 24.
Qf3 {[%clk 0:02:25.3]} 24... Rb8 {[%clk 0:00:44.4]} 25. axb5 {[%clk 0:02:24.3]}
25... axb5 {[%clk 0:00:44.1]} 26. Qe3 {[%clk 0:02:24.3]} 26... Qh4 {[%clk
0:00:42.6]} 27. Kh2 {[%clk 0:02:20.2]} 27... Ne7 {[%clk 0:00:40.1]} 28. Bb3
{[%clk 0:02:07.6]} 28... g5 {[%clk 0:00:24.6]} 29. Bd1 {[%clk 0:02:03.4]} 29...
Qf4+ {[%clk 0:00:22.9]} 30. g3 {[%clk 0:02:00.4]} 30... Qxe3 {[%clk 0:00:22.8]}
31. fxe3 {[%clk 0:01:59]} 31... f5 {[%clk 0:00:21.5]} 32. exf5 {[%clk
0:01:51.6]} 32... Rxf5 {[%clk 0:00:21.6]} 33. e4 {[%clk 0:01:50.8]} 33... Rf2+
{[%clk 0:00:19.5]} 34. Kg1 {[%clk 0:01:50.8]} 34... Rbf8 {[%clk 0:00:19.3]} 35.
Ra7 {[%clk 0:01:49.4]} 35... Bc8 {[%clk 0:00:10.2]} 36. Rxe7+ {[%clk 0:01:48.1]}
36... Kh8 {[%clk 0:00:11]} 37. g4 {[%clk 0:01:41.9]} 37... h5 {[%clk 0:00:10.6]}
38. Be2 {[%clk 0:01:33.5]} 38... hxg4 {[%clk 0:00:05.7]} 39. hxg4 {[%clk
0:01:33.6]} 39... R2f6 {[%clk 0:00:03]} 40. Kg2 {[%clk 0:01:17.4]} 40... Rh6
{[%clk 0:00:03.2]} 41. Bxg5 {[%clk 0:01:12.8]} 41... Rg6 {[%clk 0:00:03.7]} 42.
Rh1+ {[%clk 0:01:10.5]} 42... Kg8 {[%clk 0:00:04.2]} 43. Rh5 {[%clk 0:01:07.4]}
43... Bb7 {[%clk 0:00:01.8]} 44. Rxb7 {[%clk 0:01:04.9]} 44... Rg7 {[%clk
0:00:02.4]} 45. Rxg7+ {[%clk 0:01:03.9]} 45... Kxg7 {[%clk 0:00:03.3]} 46. Bh6+
{[%clk 0:01:04.2]} 1-0

[Event "*** Titled Tuesday Blitz"]
[Site "Chess.com"]
[Date "2021.04.06"]
[Round "10"]
[White "Didici"]
[Black "yobdc"]
[Result "1-0"]
[WhiteElo "2667"]
[BlackElo "2523"]
[TimeControl "180+1"]
[EndTime "11:55:53 PDT"]
[Termination "Didici won on time"]

1. d4 {[%clk 0:03:00.9]} 1... d5 {[%clk 0:02:59.4]} 2. c4 {[%clk 0:03:00.8]}
2... c6 {[%clk 0:02:59.5]} 3. Nc3 {[%clk 0:03:00.2]} 3... Nf6 {[%clk 0:02:59.5]}
4. Nf3 {[%clk 0:02:59.6]} 4... e6 {[%clk 0:02:59.1]} 5. g3 {[%clk 0:02:55.9]}
5... dxc4 {[%clk 0:02:52.4]} 6. Bg2 {[%clk 0:02:55.7]} 6... Nbd7 {[%clk
0:02:46.1]} 7. O-O {[%clk 0:02:53.9]} 7... Be7 {[%clk 0:02:43.4]} 8. e4 {[%clk
0:02:52]} 8... O-O {[%clk 0:02:42.3]} 9. Bf4 {[%clk 0:02:50.5]} 9... b5 {[%clk
0:02:38.3]} 10. d5 {[%clk 0:02:50.4]} 10... exd5 {[%clk 0:02:34.2]} 11. exd5
{[%clk 0:02:51.3]} 11... Nxd5 {[%clk 0:02:19.6]} 12. Nxd5 {[%clk 0:02:50.7]}
12... cxd5 {[%clk 0:02:18.1]} 13. Qxd5 {[%clk 0:02:51.6]} 13... Nb6 {[%clk
0:02:13.3]} 14. Qxd8 {[%clk 0:02:49.7]} 14... Rxd8 {[%clk 0:02:06.5]} 15. Ne5
{[%clk 0:02:46.4]} 15... Be6 {[%clk 0:01:48.5]} 16. Nc6 {[%clk 0:02:10.2]} 16...
Bf6 {[%clk 0:01:46.5]} 17. Nxd8 {[%clk 0:02:07.9]} 17... Rxd8 {[%clk 0:01:47.4]}
18. Rad1 {[%clk 0:02:07.5]} 18... Rxd1 {[%clk 0:01:32.1]} 19. Rxd1 {[%clk
0:02:08.4]} 19... g5 {[%clk 0:01:30.7]} 20. Bc1 {[%clk 0:02:00.7]} 20... Na4
{[%clk 0:01:28.4]} 21. Rd2 {[%clk 0:01:59.1]} 21... b4 {[%clk 0:01:02.1]} 22.
Bd5 {[%clk 0:01:01.8]} 22... c3 {[%clk 0:00:48]} 23. bxc3 {[%clk 0:01:00.8]}
23... bxc3 {[%clk 0:00:47]} 24. Rd1 {[%clk 0:00:59.6]} 24... Bf5 {[%clk
0:00:20.6]} 25. Bb3 {[%clk 0:00:54]} 25... Nb2 {[%clk 0:00:20.8]} 26. Rd5 {[%clk
0:00:41]} 26... Be6 {[%clk 0:00:17.7]} 27. Rd6 {[%clk 0:00:25.4]} 27... Bxb3
{[%clk 0:00:04.4]} 28. axb3 {[%clk 0:00:26.3]} 28... Kg7 {[%clk 0:00:02.9]} 29.
Kf1 {[%clk 0:00:23.9]} 29... g4 {[%clk 0:00:01.4]} 30. Ke2 {[%clk 0:00:23.6]}
30... h5 {[%clk 0:00:01.8]} 31. Ra6 {[%clk 0:00:21]} 1-0

[Event "*** Titled Tuesday Blitz"]
[Site "Chess.com"]
[Date "2021.04.06"]
[Round "10"]
[White "Isajevsky_Anton"]
[Black "azikom"]
[Result "0-1"]
[WhiteElo "2574"]
[BlackElo "2700"]
[TimeControl "180+1"]
[EndTime "11:55:54 PDT"]
[Termination "azikom won by resignation"]

1. c4 {[%clk 0:02:58.4]} 1... e6 {[%clk 0:02:59.3]} 2. Nf3 {[%clk 0:02:57.4]}
2... d5 {[%clk 0:02:59.7]} 3. e3 {[%clk 0:02:57.5]} 3... Nf6 {[%clk 0:03:00.1]}
4. Nc3 {[%clk 0:02:57.2]} 4... c5 {[%clk 0:02:58.3]} 5. cxd5 {[%clk 0:02:56.2]}
5... exd5 {[%clk 0:02:57.3]} 6. d4 {[%clk 0:02:55.8]} 6... Nc6 {[%clk
0:02:57.8]} 7. Bb5 {[%clk 0:02:54.8]} 7... Bd6 {[%clk 0:02:55]} 8. dxc5 {[%clk
0:02:54.6]} 8... Bxc5 {[%clk 0:02:54.4]} 9. O-O {[%clk 0:02:54.7]} 9... O-O
{[%clk 0:02:54.2]} 10. b3 {[%clk 0:02:52.7]} 10... Bg4 {[%clk 0:02:52.5]} 11.
Bxc6 {[%clk 0:02:50.8]} 11... bxc6 {[%clk 0:02:51.9]} 12. Bb2 {[%clk 0:02:50.8]}
12... Bd6 {[%clk 0:02:48.2]} 13. Ne2 {[%clk 0:02:46.1]} 13... Ne4 {[%clk
0:02:39.1]} 14. Rc1 {[%clk 0:01:36]} 14... Qc7 {[%clk 0:02:21.1]} 15. Ng3 {[%clk
0:01:35.3]} 15... f6 {[%clk 0:02:06.9]} 16. Qc2 {[%clk 0:01:20.3]} 16... Bxf3
{[%clk 0:01:40.8]} 17. gxf3 {[%clk 0:01:20.3]} 17... Ng5 {[%clk 0:01:40.7]} 18.
Kg2 {[%clk 0:01:16.3]} 18... Qd7 {[%clk 0:01:37.3]} 19. Qf5 {[%clk 0:01:14.9]}
19... Qb7 {[%clk 0:01:28.2]} 20. Rfd1 {[%clk 0:00:44.1]} 20... Rfe8 {[%clk
0:01:12.6]} 21. Qg4 {[%clk 0:00:40.4]} 21... Kh8 {[%clk 0:00:55.7]} 22. Nf5
{[%clk 0:00:37.4]} 22... Bf8 {[%clk 0:00:54.9]} 23. h4 {[%clk 0:00:36.8]} 23...
Nf7 {[%clk 0:00:54.4]} 24. h5 {[%clk 0:00:30.4]} 24... Ne5 {[%clk 0:00:53.8]}
25. Qg3 {[%clk 0:00:30.3]} 25... Qd7 {[%clk 0:00:41.2]} 26. Nd4 {[%clk
0:00:29.6]} 26... Rac8 {[%clk 0:00:37.9]} 27. f4 {[%clk 0:00:25]} 27... Nf7
{[%clk 0:00:37.3]} 28. Qh3 {[%clk 0:00:18]} 28... Qb7 {[%clk 0:00:34]} 29. Kh2
{[%clk 0:00:17.3]} 29... c5 {[%clk 0:00:33.5]} 30. Nf5 {[%clk 0:00:17.4]} 30...
d4 {[%clk 0:00:28.6]} 31. exd4 {[%clk 0:00:16]} 31... Re2 {[%clk 0:00:27.7]} 0-1

[Event "*** Titled Tuesday Blitz"]
[Site "Chess.com"]
[Date "2021.04.06"]
[Round "10"]
[White "ural58"]
[Black "vlad_Sid"]
[Result "0-1"]
[WhiteElo "2492"]
[BlackElo "2616"]
[TimeControl "180+1"]
[EndTime "11:55:54 PDT"]
[Termination "vlad_Sid won on time"]

1. e4 {[%clk 0:02:59.4]} 1... c6 {[%clk 0:02:59.9]} 2. Nc3 {[%clk 0:02:57.8]}
2... d5 {[%clk 0:02:59.7]} 3. Nf3 {[%clk 0:02:58]} 3... dxe4 {[%clk 0:02:57.3]}
4. Nxe4 {[%clk 0:02:58.2]} 4... Nf6 {[%clk 0:02:58.2]} 5. Qe2 {[%clk 0:02:55.5]}
5... Nxe4 {[%clk 0:02:57.6]} 6. Qxe4 {[%clk 0:02:55.6]} 6... Qa5 {[%clk
0:02:58.5]} 7. Bc4 {[%clk 0:02:42.7]} 7... Bf5 {[%clk 0:02:57.6]} 8. Qf4 {[%clk
0:02:37]} 8... e6 {[%clk 0:02:56.4]} 9. O-O {[%clk 0:02:23.9]} 9... Nd7 {[%clk
0:02:54.8]} 10. d3 {[%clk 0:02:18]} 10... Be7 {[%clk 0:02:52.6]} 11. Bd2 {[%clk
0:02:13.2]} 11... Qd8 {[%clk 0:02:50.8]} 12. Bc3 {[%clk 0:02:12.3]} 12... Bf6
{[%clk 0:02:50.3]} 13. Bb4 {[%clk 0:01:10.7]} 13... a5 {[%clk 0:02:36.3]} 14.
Bd6 {[%clk 0:01:06.9]} 14... b5 {[%clk 0:02:35.5]} 15. Rfe1 {[%clk 0:00:55.5]}
15... Be7 {[%clk 0:02:26.8]} 16. Nd4 {[%clk 0:00:46.7]} 16... Bxd6 {[%clk
0:01:47.9]} 17. Qxd6 {[%clk 0:00:46]} 17... bxc4 {[%clk 0:01:45.1]} 18. Nxf5
{[%clk 0:00:30.4]} 18... Qf6 {[%clk 0:01:45.1]} 19. Nd4 {[%clk 0:00:21.2]} 19...
e5 {[%clk 0:01:40.3]} 20. Qxc6 {[%clk 0:00:16.1]} 20... Qxc6 {[%clk 0:01:22.8]}
21. Nxc6 {[%clk 0:00:16.3]} 21... f6 {[%clk 0:01:23.7]} 22. d4 {[%clk 0:00:16]}
22... Ra6 {[%clk 0:01:21.2]} 23. d5 {[%clk 0:00:14.5]} 23... Nb6 {[%clk
0:01:21.2]} 24. Rad1 {[%clk 0:00:08.9]} 24... Kf7 {[%clk 0:01:21.5]} 25. d6
{[%clk 0:00:06.8]} 25... Nd7 {[%clk 0:01:19.1]} 26. Ne7 {[%clk 0:00:07]} 26...
Ke6 {[%clk 0:01:16.7]} 27. Nd5 {[%clk 0:00:06.1]} 27... Rxd6 {[%clk 0:01:08.4]}
28. Nf4+ {[%clk 0:00:05.1]} 28... Ke7 {[%clk 0:01:08.8]} 29. Rxd6 {[%clk
0:00:05.6]} 29... Kxd6 {[%clk 0:01:09.7]} 30. Rd1+ {[%clk 0:00:06.2]} 30... Kc6
{[%clk 0:01:07.5]} 31. Ne6 {[%clk 0:00:06]} 31... g6 {[%clk 0:01:05.8]} 32. f4
{[%clk 0:00:05.6]} 32... Rb8 {[%clk 0:00:55.1]} 33. b3 {[%clk 0:00:04.8]} 33...
Re8 {[%clk 0:00:48.6]} 34. f5 {[%clk 0:00:04.5]} 34... Re7 {[%clk 0:00:39.9]}
35. bxc4 {[%clk 0:00:03.4]} 35... gxf5 {[%clk 0:00:38.6]} 0-1

[Event "*** Titled Tuesday Blitz"]
[Site "Chess.com"]
[Date "2021.04.06"]
[Round "10"]
[White "MusicCityMaster"]
[Black "WinOrTilt"]
[Result "1-0"]
[WhiteElo "2390"]
[BlackElo "2221"]
[TimeControl "180+1"]
[EndTime "11:55:54 PDT"]
[Termination "MusicCityMaster won by checkmate"]

1. e4 {[%clk 0:03:00.9]} 1... e6 {[%clk 0:03:00.1]} 2. d4 {[%clk 0:03:00.2]}
2... d5 {[%clk 0:03:01]} 3. Nc3 {[%clk 0:02:59.6]} 3... dxe4 {[%clk 0:03:01.2]}
4. Nxe4 {[%clk 0:02:59.5]} 4... Nd7 {[%clk 0:03:02.1]} 5. Nf3 {[%clk 0:02:58.9]}
5... Ngf6 {[%clk 0:03:03]} 6. Ng3 {[%clk 0:02:57.6]} 6... Be7 {[%clk 0:03:03.2]}
7. Bd3 {[%clk 0:02:56.3]} 7... b6 {[%clk 0:03:03.8]} 8. O-O {[%clk 0:02:54.6]}
8... Bb7 {[%clk 0:03:04.4]} 9. c4 {[%clk 0:02:54.5]} 9... O-O {[%clk 0:03:04.8]}
10. Bd2 {[%clk 0:02:54.7]} 10... c5 {[%clk 0:03:05.1]} 11. Bc3 {[%clk 0:02:55]}
11... cxd4 {[%clk 0:03:05]} 12. Nxd4 {[%clk 0:02:54.3]} 12... Nc5 {[%clk
0:03:05.1]} 13. Bc2 {[%clk 0:02:52.8]} 13... Nce4 {[%clk 0:02:49.1]} 14. Nxe4
{[%clk 0:02:51.5]} 14... Bxe4 {[%clk 0:02:46.1]} 15. Re1 {[%clk 0:02:18.4]}
15... Bxc2 {[%clk 0:02:42.7]} 16. Qxc2 {[%clk 0:02:19.3]} 16... Rc8 {[%clk
0:02:41.1]} 17. b3 {[%clk 0:02:14.7]} 17... a6 {[%clk 0:02:37.4]} 18. Rad1
{[%clk 0:02:12.2]} 18... Qc7 {[%clk 0:02:35.7]} 19. Rd3 {[%clk 0:02:05]} 19...
Rfd8 {[%clk 0:02:34.3]} 20. Rh3 {[%clk 0:01:53.5]} 20... Qc5 {[%clk 0:02:20.8]}
21. Nf3 {[%clk 0:01:25.7]} 21... g6 {[%clk 0:02:05.8]} 22. Qb2 {[%clk
0:01:22.1]} 22... Ne8 {[%clk 0:02:03]} 23. Qc1 {[%clk 0:01:19.2]} 23... h5
{[%clk 0:01:42.2]} 24. Qh6 {[%clk 0:01:15.1]} 24... Bf6 {[%clk 0:01:29.2]} 25.
Bxf6 {[%clk 0:00:38.6]} 25... Nxf6 {[%clk 0:01:30.1]} 26. Qf4 {[%clk 0:00:38.7]}
26... Qf5 {[%clk 0:01:24.9]} 27. Qe3 {[%clk 0:00:35.5]} 27... Rd6 {[%clk
0:01:10]} 28. Ne5 {[%clk 0:00:34.9]} 28... Rcd8 {[%clk 0:01:08.1]} 29. Rf3
{[%clk 0:00:33.7]} 29... Qc2 {[%clk 0:00:40.9]} 30. Rxf6 {[%clk 0:00:31.9]}
30... Rd1 {[%clk 0:00:38.5]} 31. Nf3 {[%clk 0:00:31.1]} 31... Rxe1+ {[%clk
0:00:38.2]} 32. Nxe1 {[%clk 0:00:31]} 32... Rd1 {[%clk 0:00:36.7]} 33. Kf1
{[%clk 0:00:31.1]} 33... Qb1 {[%clk 0:00:35.9]} 34. Rf4 {[%clk 0:00:29.7]} 34...
Qxa2 {[%clk 0:00:33.1]} 35. Rd4 {[%clk 0:00:29.5]} 35... Rb1 {[%clk 0:00:30.4]}
36. Rd8+ {[%clk 0:00:28.7]} 36... Kh7 {[%clk 0:00:30.1]} 37. Qe5 {[%clk
0:00:29.4]} 37... g5 {[%clk 0:00:21.1]} 38. Rh8+ {[%clk 0:00:24.6]} 38... Kg6
{[%clk 0:00:20.8]} 39. Rg8+ {[%clk 0:00:25.2]} 39... Kh7 {[%clk 0:00:20.8]} 40.
Qg7# {[%clk 0:00:25.7]} 1-0

[Event "*** Titled Tuesday Blitz"]
[Site "Chess.com"]
[Date "2021.04.06"]
[Round "10"]
[White "Rodchenkov_Vitalij"]
[Black "DKmirl"]
[Result "1-0"]
[WhiteElo "2130"]
[BlackElo "1926"]
[TimeControl "180+1"]
[EndTime "11:55:55 PDT"]
[Termination "Rodchenkov_Vitalij won on time"]

1. Nf3 {[%clk 0:03:00.5]} 1... d5 {[%clk 0:02:58.9]} 2. d4 {[%clk 0:02:59.7]}
2... Nf6 {[%clk 0:02:58.4]} 3. c4 {[%clk 0:02:57.8]} 3... c6 {[%clk 0:02:58.5]}
4. e3 {[%clk 0:02:56.4]} 4... g6 {[%clk 0:02:58.6]} 5. Nc3 {[%clk 0:02:55.2]}
5... Bg7 {[%clk 0:02:59]} 6. b4 {[%clk 0:02:50.9]} 6... O-O {[%clk 0:02:58]} 7.
Bd3 {[%clk 0:02:49.8]} 7... a5 {[%clk 0:02:51.4]} 8. b5 {[%clk 0:02:47.7]} 8...
dxc4 {[%clk 0:02:50.8]} 9. Bxc4 {[%clk 0:02:47.6]} 9... cxb5 {[%clk 0:02:50.5]}
10. Nxb5 {[%clk 0:02:42.9]} 10... Bd7 {[%clk 0:02:34.5]} 11. O-O {[%clk
0:02:40.2]} 11... Nc6 {[%clk 0:02:27.4]} 12. Bd3 {[%clk 0:02:30.3]} 12... Nb4
{[%clk 0:02:25.8]} 13. Ba3 {[%clk 0:02:14]} 13... Nfd5 {[%clk 0:02:05.2]} 14.
Qb3 {[%clk 0:01:56.2]} 14... Nxd3 {[%clk 0:01:48.4]} 15. Qxd3 {[%clk 0:01:53.8]}
15... Nb4 {[%clk 0:01:46.7]} 16. Bxb4 {[%clk 0:01:52.1]} 16... axb4 {[%clk
0:01:46.8]} 17. a4 {[%clk 0:01:45.7]} 17... Qb6 {[%clk 0:01:40.2]} 18. Qc4
{[%clk 0:01:38.4]} 18... Rfc8 {[%clk 0:01:22.9]} 19. Qxb4 {[%clk 0:01:35.2]}
19... Bxb5 {[%clk 0:01:16.8]} 20. axb5 {[%clk 0:01:33]} 20... e6 {[%clk
0:01:06.2]} 21. h3 {[%clk 0:01:30.9]} 21... Bf8 {[%clk 0:01:05.6]} 22. Qb3
{[%clk 0:01:27.3]} 22... Ra5 {[%clk 0:00:59.6]} 23. Rxa5 {[%clk 0:01:23]} 23...
Qxa5 {[%clk 0:00:59.5]} 24. Ne5 {[%clk 0:01:20.1]} 24... Rc3 {[%clk 0:00:17]}
25. Qb2 {[%clk 0:01:16.5]} 25... Ba3 {[%clk 0:00:14.4]} 26. Qb1 {[%clk
0:01:12.2]} 26... Bb4 {[%clk 0:00:10.7]} 27. Rc1 {[%clk 0:01:07.1]} 27... Rxc1+
{[%clk 0:00:05.3]} 28. Qxc1 {[%clk 0:01:08]} 28... Qxb5 {[%clk 0:00:06.2]} 29.
Qc8+ {[%clk 0:01:03.1]} 29... Kg7 {[%clk 0:00:06.6]} 30. Qc7 {[%clk 0:01:00.2]}
30... Ba5 {[%clk 0:00:03.9]} 31. Qxf7+ {[%clk 0:00:59]} 31... Kh6 {[%clk
0:00:03.5]} 32. Qf8+ {[%clk 0:00:51.6]} 32... Kh5 {[%clk 0:00:02.2]} 33. g4+
{[%clk 0:00:44.3]} 33... Kg5 {[%clk 0:00:01.7]} 34. Qf4+ {[%clk 0:00:37.7]} 1-0

[Event "*** Titled Tuesday Blitz"]
[Site "Chess.com"]
[Date "2021.04.06"]
[Round "10"]
[White "davigator"]
[Black "elextranjero00"]
[Result "1-0"]
[WhiteElo "2386"]
[BlackElo "2552"]
[TimeControl "180+1"]
[EndTime "11:55:58 PDT"]
[Termination "davigator won on time"]

1. e4 {[%clk 0:03:00.9]} 1... c5 {[%clk 0:02:59.3]} 2. Nf3 {[%clk 0:02:59.6]}
2... e6 {[%clk 0:02:59.7]} 3. d4 {[%clk 0:02:58.4]} 3... cxd4 {[%clk 0:03:00.6]}
4. Nxd4 {[%clk 0:02:58.7]} 4... a6 {[%clk 0:03:01]} 5. Bd3 {[%clk 0:02:57.6]}
5... Bc5 {[%clk 0:02:59.7]} 6. Nb3 {[%clk 0:02:56.9]} 6... Be7 {[%clk
0:02:59.8]} 7. c4 {[%clk 0:02:55.8]} 7... d6 {[%clk 0:02:57.3]} 8. Nc3 {[%clk
0:02:55.9]} 8... Nf6 {[%clk 0:02:57]} 9. O-O {[%clk 0:02:56]} 9... O-O {[%clk
0:02:54.7]} 10. Be3 {[%clk 0:02:53.8]} 10... Nbd7 {[%clk 0:02:53.7]} 11. Qe2
{[%clk 0:02:52.6]} 11... b6 {[%clk 0:02:53.8]} 12. Rac1 {[%clk 0:02:51]} 12...
Bb7 {[%clk 0:02:53.9]} 13. f3 {[%clk 0:02:50.4]} 13... Qc7 {[%clk 0:02:53.2]}
14. Nd4 {[%clk 0:02:49.2]} 14... Rfe8 {[%clk 0:02:52.6]} 15. Rfd1 {[%clk
0:02:47.6]} 15... Rac8 {[%clk 0:02:52.8]} 16. Qf2 {[%clk 0:02:43.4]} 16... Qb8
{[%clk 0:02:52.7]} 17. Kh1 {[%clk 0:02:42.7]} 17... Ne5 {[%clk 0:02:37.4]} 18.
b3 {[%clk 0:02:41.6]} 18... Nfd7 {[%clk 0:02:33]} 19. Be2 {[%clk 0:02:38.3]}
19... h5 {[%clk 0:02:24.8]} 20. Nc2 {[%clk 0:02:37.5]} 20... Ba8 {[%clk
0:02:13.1]} 21. a4 {[%clk 0:02:23.8]} 21... Ng6 {[%clk 0:01:52.9]} 22. b4 {[%clk
0:01:42.7]} 22... h4 {[%clk 0:01:14.8]} 23. Rb1 {[%clk 0:01:42.1]} 23... h3
{[%clk 0:01:13.4]} 24. gxh3 {[%clk 0:01:38.8]} 24... Nde5 {[%clk 0:01:08.1]} 25.
Na3 {[%clk 0:01:34.4]} 25... Bh4 {[%clk 0:00:46]} 26. Qg2 {[%clk 0:01:33.4]}
26... Bf6 {[%clk 0:00:43.4]} 27. Rdc1 {[%clk 0:01:28.3]} 27... Nh4 {[%clk
0:00:35.4]} 28. Qf2 {[%clk 0:01:27.6]} 28... d5 {[%clk 0:00:25.2]} 29. cxd5
{[%clk 0:01:16.7]} 29... exd5 {[%clk 0:00:16.7]} 30. Nxd5 {[%clk 0:01:16.4]}
30... Bxd5 {[%clk 0:00:16.6]} 31. exd5 {[%clk 0:01:16.6]} 31... Rxc1+ {[%clk
0:00:15.8]} 32. Rxc1 {[%clk 0:01:15.4]} 32... Qd6 {[%clk 0:00:13.3]} 33. Nc4
{[%clk 0:01:09.8]} 33... Nxc4 {[%clk 0:00:12.6]} 34. Bxc4 {[%clk 0:01:09.7]}
34... Qxb4 {[%clk 0:00:08.3]} 35. Bxb6 {[%clk 0:01:09.4]} 35... Bg5 {[%clk
0:00:04.4]} 36. Bc5 {[%clk 0:00:57.7]} 36... Qxa4 {[%clk 0:00:03.1]} 37. Rc2
{[%clk 0:00:53]} 37... Qa1+ {[%clk 0:00:02.2]} 38. Bf1 {[%clk 0:00:52.9]} 38...
Qe5 {[%clk 0:00:01.7]} 39. d6 {[%clk 0:00:48.9]} 39... Qd5 {[%clk 0:00:01.7]}
40. Rd2 {[%clk 0:00:46.6]} 40... Rd8 {[%clk 0:00:02.4]} 41. Rxd5 {[%clk
0:00:45.4]} 1-0

[Event "*** Titled Tuesday Blitz"]
[Site "Chess.com"]
[Date "2021.04.06"]
[Round "10"]
[White "DonBroca"]
[Black "dhaessel"]
[Result "1-0"]
[WhiteElo "2213"]
[BlackElo "2076"]
[TimeControl "180+1"]
[EndTime "11:55:59 PDT"]
[Termination "DonBroca won by resignation"]

1. e4 {[%clk 0:03:00.9]} 1... e5 {[%clk 0:01:57.4]} 2. Nf3 {[%clk 0:03:00.3]}
2... Nc6 {[%clk 0:01:57.9]} 3. Bb5 {[%clk 0:02:59.5]} 3... Nf6 {[%clk
0:01:57.8]} 4. O-O {[%clk 0:02:58.9]} 4... Nxe4 {[%clk 0:01:58]} 5. Re1 {[%clk
0:02:59.3]} 5... Nd6 {[%clk 0:01:58.5]} 6. Nxe5 {[%clk 0:02:58.6]} 6... Be7
{[%clk 0:01:55.9]} 7. Bf1 {[%clk 0:02:53]} 7... Nxe5 {[%clk 0:01:55.4]} 8. Rxe5
{[%clk 0:02:52.2]} 8... O-O {[%clk 0:01:56.3]} 9. d4 {[%clk 0:02:51.2]} 9... Ne8
{[%clk 0:01:53.5]} 10. c4 {[%clk 0:02:47.6]} 10... d6 {[%clk 0:01:37.8]} 11. Re1
{[%clk 0:02:47.1]} 11... Nf6 {[%clk 0:01:29.8]} 12. g3 {[%clk 0:02:46.3]} 12...
d5 {[%clk 0:01:24.6]} 13. c5 {[%clk 0:02:37.4]} 13... c6 {[%clk 0:01:21.1]} 14.
Nc3 {[%clk 0:02:36.6]} 14... Bf5 {[%clk 0:01:19.7]} 15. Bg2 {[%clk 0:02:32.7]}
15... Re8 {[%clk 0:01:18.6]} 16. Bf4 {[%clk 0:02:30.1]} 16... Bf8 {[%clk
0:01:15.5]} 17. Qd2 {[%clk 0:02:28.7]} 17... g6 {[%clk 0:01:11.5]} 18. Rxe8
{[%clk 0:02:22.7]} 18... Qxe8 {[%clk 0:01:10.8]} 19. Re1 {[%clk 0:02:23.3]}
19... Qd7 {[%clk 0:01:09.7]} 20. Be5 {[%clk 0:02:12.9]} 20... Bg7 {[%clk
0:01:09.1]} 21. h4 {[%clk 0:02:09.6]} 21... Re8 {[%clk 0:01:05.8]} 22. a3 {[%clk
0:01:53.9]} 22... b6 {[%clk 0:01:00.8]} 23. b4 {[%clk 0:01:42.9]} 23... Ng4
{[%clk 0:00:46.8]} 24. Bxg7 {[%clk 0:01:39.3]} 24... Kxg7 {[%clk 0:00:47.7]} 25.
Rxe8 {[%clk 0:01:33.3]} 25... Qxe8 {[%clk 0:00:46.9]} 26. Qe2 {[%clk 0:01:33.5]}
26... Qxe2 {[%clk 0:00:36.8]} 27. Nxe2 {[%clk 0:01:34.4]} 27... bxc5 {[%clk
0:00:33.5]} 28. bxc5 {[%clk 0:01:21.1]} 28... Bd3 {[%clk 0:00:31.5]} 29. Nf4
{[%clk 0:01:10]} 29... Bb5 {[%clk 0:00:29.1]} 30. Bh3 {[%clk 0:01:09.8]} 30...
Nf6 {[%clk 0:00:27.5]} 31. f3 {[%clk 0:01:09.3]} 31... h6 {[%clk 0:00:24.9]} 32.
Bf1 {[%clk 0:00:49.2]} 32... Bxf1 {[%clk 0:00:22.7]} 33. Kxf1 {[%clk 0:00:50.1]}
33... Ne8 {[%clk 0:00:20.6]} 34. Nd3 {[%clk 0:00:44.6]} 34... Nc7 {[%clk
0:00:15]} 35. Ne5 {[%clk 0:00:40.6]} 35... Nb5 {[%clk 0:00:15.3]} 36. Nxc6
{[%clk 0:00:40]} 36... Kf6 {[%clk 0:00:13]} 37. a4 {[%clk 0:00:38.6]} 37... Nc3
{[%clk 0:00:12.5]} 38. Nxa7 {[%clk 0:00:33.6]} 38... Nxa4 {[%clk 0:00:12.8]} 39.
c6 {[%clk 0:00:33.7]} 39... Nb6 {[%clk 0:00:07.5]} 40. c7 {[%clk 0:00:31.7]} 1-0